bitfinex-derivatives/quotes_BTCF0:USTF0_20251215
["timestamp","ask_amount","ask_price","bid_price","bid_amount"]
[1765762920490,0.08061,89114.0,89113.0,0.43937]
[1765762920687,0.0603789,89117.0,89116.0,0.07857]
[1765762920896,0.3608,89140.0,89121.0,0.07857]
[1765762920897,0.0603789,89122.0,89121.0,0.07857]
[1765762921087,0.08061,89114.0,89113.0,0.43937]
[1765762921289,0.06038588,89118.0,89117.0,0.07857]
[1765762921493,0.00016829,89130.0,89128.0,0.07857]
[1765762921695,0.706,89129.0,89128.0,0.07857]
[1765762921887,0.74588,89129.0,89128.0,0.07857]
[1765762922103,0.78661,89129.0,89128.0,0.07857]
[1765762922597,0.08061,89123.0,89122.0,0.06297]
[1765762922804,0.08061,89123.0,89122.0,0.02368]
[1765762923189,0.08061,89123.0,89122.0,0.10225]
[1765762923496,0.3608,89125.0,89124.0,0.07857]
[1765762924386,0.3608,89125.0,89122.0,0.02368]
[1765762924387,0.00016829,89130.0,89129.0,0.07857]
[1765762924587,0.00016829,89130.0,89129.0,0.0897887]
[1765762929798,0.70608,89147.0,89142.0,0.07857]
[1765762930105,0.74596,89147.0,89146.0,0.07857]
[1765762930691,0.78669,89147.0,89146.0,0.07857]
[1765762930892,0.08061,89144.0,89143.0,0.3608]
[1765762931398,0.14100013,89144.0,89143.0,0.3608]
[1765762931991,0.10027013,89144.0,89143.0,0.43937]
[1765762932201,0.06039013,89144.0,89143.0,0.43937]
[1765762932390,0.70608,89147.0,89146.0,0.07857]
[1765762932593,0.08061,89144.0,89143.0,0.3608]
[1765762932791,0.08057,89139.0,89138.0,0.00016829]
[1765762935506,0.0863138,89139.0,89138.0,0.00016829]
[1765762936799,0.0112178,89137.0,89120.0,0.02368]
[1765762937002,0.06045638,89125.0,89124.0,0.07857]
[1765762937208,0.84467638,89125.0,89124.0,0.07857]
[1765762937407,0.07858,89121.0,89120.0,0.06297]
[1765762937613,0.07858,89121.0,89120.0,0.02368]
[1765762938298,0.07826,89115.0,89114.0,0.3608]
[1765762938499,0.07826,89115.0,89100.0,0.02368]
[1765762938500,0.0604625,89118.0,89104.0,0.0112218]
[1765762938702,0.0604625,89118.0,89100.0,0.02368]
[1765762938703,0.0604625,89115.0,89110.0,0.034901]
[1765762939012,0.0604625,89115.0,89114.0,0.07857]
[1765762939214,0.36654366,89121.0,89118.0,0.07857]
[1765762939215,0.70564,89119.0,89118.0,0.07857]
[1765762939415,0.70564,89119.0,89118.0,0.43937]
[1765762940100,0.00577981,89129.0,89125.0,0.0897892]
[1765762940101,0.0604625,89126.0,89125.0,0.0897892]
[1765762940411,0.00016829,89129.0,89128.0,0.07857]
[1765762940611,0.06047048,89137.0,89136.0,0.07857]
[1765762940914,0.58967048,89138.0,89137.0,0.0897877]
[1765762942409,0.5292,89138.0,89137.0,0.0897877]
[1765762942806,0.56748,89138.0,89137.0,0.0897877]
[1765762943012,0.07456,89137.0,89136.0,0.3608]
[1765762943316,0.13503048,89137.0,89136.0,0.3608]
[1765762943916,0.07422,89131.0,89130.0,0.02368]
[1765762944117,0.03728,89131.0,89130.0,0.10225]
[1765762944312,0.06046961,89136.0,89134.0,0.07857]
[1765762944513,0.09740961,89136.0,89135.0,0.07857]
[1765762944713,0.13434961,89136.0,89135.0,0.07857]
[1765762945218,0.06046961,89136.0,89135.0,0.07857]
[1765762945411,0.0732,89136.0,89135.0,0.07857]
[1765762946203,0.0732,89136.0,89130.0,0.02368]
[1765762946204,0.07252,89131.0,89130.0,0.02368]
[1765762946408,0.07252,89130.0,89129.0,0.00016829]
[1765762947219,0.13298961,89130.0,89129.0,0.00016829]
[1765762947918,0.07252,89130.0,89129.0,0.00016829]
[1765762948119,0.07252,89130.0,89129.0,0.07111829]
[1765762949417,0.89,89138.0,89130.0,0.09221]
[1765762949418,0.06046961,89132.0,89130.0,0.09221]
[1765762949621,0.06046961,89133.0,89132.0,0.07142]
[1765762950508,0.12984961,89133.0,89132.0,0.07142]
[1765762952218,0.06938,89133.0,89132.0,0.07142]
[1765762952419,0.12986868,89133.0,89132.0,0.07142]
[1765762952618,0.06837,89132.0,89131.0,0.3608]
[1765762953010,0.12885895,89132.0,89131.0,0.3608]
[1765762953213,0.0679,89130.0,89129.0,0.00016829]
[1765762953414,0.12839088,89130.0,89129.0,0.00016829]
[1765762953615,0.0679,89130.0,89129.0,0.00016829]
[1765762955914,0.0846,89130.0,89129.0,0.00016829]
[1765762956527,0.0659,89115.0,89114.0,0.43222]
[1765762957414,0.7054,89117.0,89116.0,0.07142]
[1765762957615,0.83113495,89117.0,89116.0,0.07142]
[1765762958626,0.77064,89117.0,89116.0,0.07142]
[1765762958923,0.83113495,89117.0,89116.0,0.07142]
[1765762959120,0.77064,89117.0,89116.0,0.07142]
[1765762959319,0.06398,89111.0,89110.0,0.0951]
[1765762959511,0.06398,89111.0,89110.0,0.05903]
[1765762959711,0.06398,89111.0,89110.0,0.02368]
[1765762959921,0.06365,89110.0,89109.0,0.45301]
[1765762960226,0.06365,89110.0,89109.0,0.09221]
[1765762961025,0.06365,89110.0,89109.0,0.02079]
[1765762961230,0.06268,89101.0,89100.0,0.0951]
[1765762961419,0.06268,89101.0,89100.0,0.02368]
[1765762961828,0.06268,89101.0,89100.0,0.0951]
[1765762962421,0.03134,89101.0,89100.0,0.0951]
[1765762962927,0.7367,89101.0,89100.0,0.0951]
[1765762963125,0.76771,89101.0,89100.0,0.0951]
[1765762964125,0.06072,89099.0,89098.0,0.3608]
[1765762966122,0.06072,89099.0,89098.0,0.39615]
[1765762966319,0.06072,89099.0,89098.0,0.43222]
[1765762966520,0.03036,89099.0,89098.0,0.43222]
[1765762966716,0.06008,89099.0,89098.0,0.43222]
[1765762967122,0.11929495,89105.0,89104.0,0.07142]
[1765762967330,0.83026142,89105.0,89104.0,0.07142]
[1765762968333,0.76976647,89105.0,89104.0,0.07142]
[1765762971332,0.76976647,89105.0,89104.0,0.03535]
[1765762971832,0.76976647,89105.0,89104.0,0.07142]
[1765762973123,0.71100647,89105.0,89104.0,0.07142]
[1765762973725,0.73849647,89105.0,89104.0,0.07142]
[1765762975038,0.76535647,89105.0,89104.0,0.09221]
[1765762975532,0.3608,89118.0,89112.0,0.09221]
[1765762975533,0.02686,89113.0,89112.0,0.09221]
[1765762975736,0.75916,89113.0,89112.0,0.09221]
[1765762977928,0.36650195,89118.0,89117.0,0.06412]
[1765762977929,0.41838195,89118.0,89117.0,0.06412]
[1765762978128,1.11812,89118.0,89117.0,0.0753403]
[1765762978444,0.06049495,89125.0,89122.0,0.06412]
[1765762978626,0.59724829,89123.0,89122.0,0.06412]
[1765762978830,0.62318829,89123.0,89122.0,0.06412]
[1765762979244,0.01441,89094.0,89093.0,0.40083404]
[1765762979538,0.02882,89092.0,89091.0,0.08288]
[1765762979730,0.02882,89092.0,89091.0,0.44368]
[1765762980837,0.70544,89097.0,89096.0,0.06412]
[1765762981136,0.06041848,89121.0,89120.0,0.08288]
[1765762981327,0.06041848,89124.0,89123.0,0.06412]
[1765762981527,0.65652,89128.0,89127.0,0.06412]
[1765762981730,0.72203,89128.0,89127.0,0.06412]
[1765762981937,0.68776,89128.0,89127.0,0.06412]
[1765762982430,0.72203,89128.0,89127.0,0.06412]
[1765762983231,0.72203,89128.0,89127.0,0.0331]
[1765762983639,0.72203,89128.0,89127.0,0.06412]
[1765762985538,0.65652,89128.0,89127.0,0.06412]
[1765762986140,0.72203,89128.0,89127.0,0.06412]
[1765762986640,0.68776,89128.0,89127.0,0.06412]
[1765762986837,0.68776,89128.0,89127.0,0.08288]
[1765762987026,0.06551,89125.0,89124.0,0.3608]
[1765762987232,0.06551,89125.0,89124.0,0.42492]
[1765762987433,0.72203,89128.0,89127.0,0.08288]
[1765762987633,0.00016829,89136.0,89135.0,0.06412]
[1765762988738,0.3608,89158.0,89157.0,0.06412]
[1765762988934,0.3608,89158.0,89154.0,0.01876]
[1765762988935,0.06041848,89165.0,89163.0,0.06412]
[1765762989135,0.06551,89165.0,89164.0,0.06412]
[1765762989847,0.0112139,89168.0,89160.0,0.01876]
[1765762989848,0.06551,89161.0,89160.0,0.05186]
[1765762990145,0.06551,89161.0,89160.0,0.08288]
[1765762990728,0.03124,89161.0,89160.0,0.08288]
[1765762991333,0.06551,89161.0,89160.0,0.08288]
[1765762991528,0.06551,89161.0,89160.0,0.06412]
[1765762991734,0.06551,89161.0,89160.0,0.08288]
[1765762991930,0.03124,89161.0,89160.0,0.08288]
[1765762992149,0.7126135,89171.0,89156.0,0.36096829]
[1765762992150,0.06551,89157.0,89156.0,0.36096829]
[1765762992335,0.77107,89157.0,89156.0,0.00016829]
[1765762992530,1.06636,89157.0,89133.0,0.3608]
[1765762992743,0.03124,89134.0,89133.0,0.42492]
[1765762992932,0.06551,89134.0,89133.0,0.3608]
[1765762993137,0.01979,89140.0,89123.0,0.3939]
[1765762993138,0.06551,89124.0,89123.0,0.3939]
[1765762993736,0.06551,89124.0,89123.0,0.42492]
[1765762996246,0.03124,89124.0,89123.0,0.42492]
[1765763000335,0.06567829,89132.0,89131.0,0.06412]
[1765763000642,0.00016829,89132.0,89131.0,0.42492]
[1765763001740,0.07109309,89144.0,89143.0,0.06412]
[1765763001946,0.06551,89144.0,89143.0,0.42492]
[1765763002353,0.20790423,89149.0,89148.0,0.06412]
[1765763002555,0.2022,89149.0,89148.0,0.06412]
[1765763002748,0.26771,89149.0,89148.0,0.06412]
[1765763004455,0.23344,89149.0,89148.0,0.06412]
[1765763004845,0.03124,89149.0,89148.0,0.06412]
[1765763005743,0.00562197,89150.0,89149.0,0.06412]
[1765763005940,0.12570178,89153.0,89152.0,0.06412]
[1765763006145,0.06019178,89153.0,89152.0,0.06412]
[1765763006341,0.1312103,89153.0,89152.0,0.06412]
[1765763006549,0.08151,89144.0,89143.0,0.4426]
[1765763007644,0.04138,89144.0,89143.0,0.4426]
[1765763008054,0.08151,89141.0,89140.0,0.00016829]
[1765763008255,0.08151,89141.0,89140.0,0.08196829]
[1765763013052,0.08151,89141.0,89140.0,0.09318569]
[1765763014254,0.08151,89141.0,89140.0,0.08196829]
[1765763017160,0.07699,89146.0,89145.0,0.08053]
[1765763017356,0.13728285,89146.0,89145.0,0.08053]
[1765763017564,0.07699,89146.0,89145.0,0.08053]
[1765763017866,0.13728285,89146.0,89145.0,0.08053]
[1765763018559,0.07699,89146.0,89145.0,0.08053]
[1765763018862,0.08643851,89157.0,89148.0,0.0917464]
[1765763018863,0.06029285,89149.0,89148.0,0.0917464]
[1765763019061,0.06029285,89149.0,89148.0,0.4525464]
[1765763020359,0.16342851,89157.0,89156.0,0.08053]
[1765763020664,0.08287054,89157.0,89156.0,0.08053]
[1765763020854,0.08287054,89157.0,89156.0,0.44133]
[1765763023356,0.04474054,89157.0,89156.0,0.44133]
[1765763023554,0.00016829,89157.0,89156.0,0.44133]
[1765763024060,0.07715829,89157.0,89156.0,0.44133]
[1765763025870,0.15771626,89157.0,89156.0,0.44133]
[1765763026666,0.07715829,89157.0,89156.0,0.44133]
[1765763033166,0.07715829,89157.0,89156.0,0.4525453]
[1765763033568,0.15771626,89157.0,89156.0,0.44133]
[1765763036959,0.07554,89141.0,89140.0,0.03793829]
[1765763037164,0.15624271,89141.0,89140.0,0.07451829]
[1765763037368,0.07554,89141.0,89140.0,0.07451829]
[1765763037562,0.15624271,89141.0,89140.0,0.07451829]
[1765763038268,0.07554,89141.0,89140.0,0.07451829]
[1765763041474,0.08108684,89141.0,89140.0,0.07451829]
[1765763042474,0.08108684,89141.0,89120.0,0.19505135]
[1765763042475,0.0112198,89121.0,89110.0,0.02155]
[1765763042661,0.3608,89118.0,89110.0,0.02155]
[1765763042867,0.3720201,89118.0,89117.0,0.0959]
[1765763043075,0.3720201,89118.0,89117.0,0.02155]
[1765763043465,0.7720201,89118.0,89117.0,0.02155]
[1765763043661,0.011221,89111.0,89110.0,0.02155]
[1765763043962,0.011221,89111.0,89109.0,0.00016829]
[1765763044167,0.44140889,89110.0,89109.0,0.00016829]
[1765763044368,0.3608,89110.0,89109.0,0.02171829]
[1765763046570,0.3843392,89110.0,89109.0,0.02171829]
[1765763047273,0.4446056,89110.0,89109.0,0.02171829]
[1765763047676,0.3843392,89110.0,89109.0,0.02171829]
[1765763047876,0.3843392,89110.0,89109.0,0.00016829]
[1765763049166,0.3843392,89110.0,89088.0,0.07155]
[1765763049167,0.7843392,89110.0,89088.0,0.07155]
[1765763049372,0.0112236,89091.0,89088.0,0.07155]
[1765763049570,0.0112238,89089.0,89088.0,0.07155]
[1765763049766,0.034763,89089.0,89088.0,0.07155]
[1765763049974,0.034763,89089.0,89088.0,0.05]
[1765763050772,0.034763,89089.0,89088.0,0.07155]
[1765763051172,0.0235392,89089.0,89088.0,0.07155]
[1765763051372,0.0235392,89089.0,89088.0,0.1459]
[1765763051576,0.7288992,89089.0,89088.0,0.1459]
[1765763052075,0.7288992,89089.0,89088.0,0.05]
[1765763053773,0.7288992,89089.0,89088.0,0.07155]
[1765763054572,0.7288992,89089.0,89088.0,0.05]
[1765763054979,0.7288992,89089.0,89088.0,0.07155]
[1765763055371,0.7288992,89089.0,89088.0,0.05]
[1765763055573,0.7288992,89089.0,89088.0,0.07155]
[1765763058278,0.7288992,89089.0,89088.0,0.1459]
[1765763059281,0.7288992,89089.0,89088.0,0.07155]
[1765763060890,0.7288992,89089.0,89088.0,0.05]
[1765763061074,1.1288992,89089.0,89088.0,0.05]
[1765763061278,1.20194713,89089.0,89088.0,0.05]
[1765763061682,1.26215531,89089.0,89088.0,0.05]
[1765763061883,1.20194713,89089.0,89088.0,0.05]
[1765763062281,1.26215531,89089.0,89088.0,0.05]
[1765763063187,1.26215531,89089.0,89088.0,0.07155]
[1765763063387,1.20194713,89089.0,89088.0,0.07155]
[1765763063787,1.20194713,89089.0,89088.0,0.05]
[1765763064378,1.26201037,89089.0,89088.0,0.05]
[1765763064579,1.20194713,89089.0,89088.0,0.05]
[1765763067092,1.40414713,89089.0,89088.0,0.05]
[1765763067683,1.40414713,89089.0,89088.0,0.07545]
[1765763068383,0.69878713,89089.0,89088.0,0.07545]
[1765763068583,2.6961792,89089.0,89088.0,0.07545]
[1765763069191,2.6961792,89089.0,89088.0,0.16332]
[1765763069592,2.4939792,89089.0,89088.0,0.07545]
[1765763069984,2.4939792,89089.0,89088.0,0.05]
[1765763070184,0.3843392,89089.0,89088.0,0.05]
[1765763070380,1.1703389,89089.0,89088.0,0.07633]
[1765763071391,1.4507792,89089.0,89088.0,0.07633]
[1765763073188,0.7451392,89089.0,89088.0,0.1642]
[1765763073596,1.4507792,89089.0,89088.0,0.07633]
[1765763074096,1.4507792,89089.0,89088.0,0.05]
[1765763074698,1.4507792,89089.0,89088.0,0.07633]
[1765763075395,1.4507792,89089.0,89088.0,0.1642]
[1765763075592,0.7451392,89089.0,89088.0,0.1642]
[1765763075792,1.4507792,89089.0,89088.0,0.1642]
[1765763077602,1.4507792,89089.0,89088.0,0.07633]
[1765763077894,1.52808244,89089.0,89088.0,0.0016036]
[1765763078100,1.42724,89089.0,89088.0,0.0016036]
[1765763078889,0.03936,89081.0,89080.0,0.02155]
[1765763079095,1.1058,89081.0,89080.0,0.02155]
[1765763079289,1.1058,89081.0,89080.0,0.10942]
[1765763079495,1.08612,89081.0,89080.0,0.10942]
[1765763082304,1.08612,89081.0,89080.0,0.02155]
[1765763083506,1.08612,89081.0,89080.0,0.10942]
[1765763087099,1.08612,89081.0,89080.0,0.02155]
[1765763087403,1.08612,89081.0,89080.0,0.10942]
[1765763091901,1.10337,89081.0,89080.0,0.10942]
[1765763092099,0.38048,89081.0,89080.0,0.10942]
[1765763092405,1.0664,89081.0,89080.0,0.10942]
[1765763093300,1.08189,89081.0,89080.0,0.10942]
[1765763093701,0.10090626,89084.0,89083.0,0.08787]
[1765763093908,0.10090626,89091.0,89090.0,0.08787]
[1765763094116,0.10090626,89098.0,89096.0,0.1254229]
[1765763094298,0.10090626,89100.0,89099.0,0.08787]
[1765763094504,0.7056,89100.0,89099.0,0.08787]
[1765763094699,0.08076331,89102.0,89101.0,0.08787]
[1765763094901,0.08076331,89104.0,89102.0,0.0990921]
[1765763095104,0.08076331,89106.0,89105.0,0.0990918]
[1765763095408,0.08076331,89111.0,89110.0,0.08787]
[1765763095805,0.78632331,89111.0,89110.0,0.08787]
[1765763095999,0.08076331,89112.0,89111.0,0.099091]
[1765763096205,0.70556,89112.0,89111.0,0.099091]
[1765763096805,0.70556,89112.0,89111.0,0.08787]
[1765763097001,0.73495,89112.0,89111.0,0.08787]
[1765763097215,0.70556,89112.0,89111.0,0.08787]
[1765763097414,0.06041958,89112.0,89111.0,0.08787]
[1765763097606,0.00016839,89114.0,89113.0,0.08891]
[1765763097915,0.70568839,89114.0,89113.0,0.08891]
[1765763098211,0.00016839,89114.0,89113.0,0.08891]
[1765763098414,0.06041958,89122.0,89121.0,0.1001298]
[1765763098603,0.06041958,89129.0,89128.0,0.11432]
[1765763098808,0.53757958,89129.0,89128.0,0.1255389]
[1765763099003,0.47716,89129.0,89128.0,0.1255389]
[1765763099201,0.02004057,89137.0,89136.0,0.11432]
[1765763099514,0.014,89140.0,89139.0,0.08891]
[1765763099703,0.70548,89140.0,89139.0,0.08891]
[1765763099910,0.00016829,89145.0,89144.0,0.11432]
[1765763100103,0.54142829,89145.0,89144.0,0.11432]
[1765763100304,0.90222829,89145.0,89144.0,0.11432]
[1765763100611,0.36096829,89145.0,89144.0,0.11432]
[1765763100807,0.70560829,89145.0,89144.0,0.11432]
[1765763101004,1.09356829,89145.0,89144.0,0.11432]
[1765763101208,1.06640829,89145.0,89144.0,0.11432]
[1765763101815,0.1122042,89169.0,89144.0,0.11432]
[1765763101816,0.06041958,89156.0,89155.0,0.1001255]
[1765763102120,0.44156331,89165.0,89162.0,0.08891]
[1765763102121,0.08768,89163.0,89162.0,0.08891]
[1765763102316,0.3608,89165.0,89164.0,0.08891]
[1765763102613,0.44848,89165.0,89164.0,0.08891]
[1765763102816,0.98316,89165.0,89164.0,0.08891]
[1765763103218,0.08768,89157.0,89156.0,0.08907829]
[1765763104017,0.98316,89165.0,89164.0,0.08891]
[1765763104217,0.08768,89157.0,89156.0,0.08907829]
[1765763104416,0.08768,89157.0,89156.0,0.00016829]
[1765763104612,0.44848,89157.0,89156.0,0.00016829]
[1765763104813,0.50889958,89157.0,89156.0,0.00016829]
[1765763105012,0.44848,89157.0,89156.0,0.00016829]
[1765763105815,0.45416097,89157.0,89156.0,0.00016829]
[1765763106315,0.51412348,89157.0,89156.0,0.00016829]
[1765763107223,0.45416097,89157.0,89156.0,0.00016829]
[1765763108307,0.08768,89142.0,89141.0,0.3608]
[1765763108514,0.08768,89128.0,89127.0,0.11432]
[1765763108709,0.72648,89128.0,89127.0,0.11432]
[1765763108914,0.72648,89128.0,89127.0,0.08891]
[1765763109317,0.08768,89125.0,89120.0,0.0112198]
[1765763109521,0.08768,89125.0,89124.0,0.44971]
[1765763111318,0.04551,89125.0,89124.0,0.4609294]
[1765763112413,0.08768,89125.0,89124.0,0.4609294]
[1765763112813,0.04551,89125.0,89124.0,0.4609294]
[1765763113318,0.3608,89134.0,89133.0,0.1001282]
[1765763113523,0.00016829,89136.0,89133.0,0.1001282]
[1765763113524,0.00016829,89136.0,89135.0,0.08891]
[1765763113719,0.79292829,89136.0,89135.0,0.08891]
[1765763114121,0.08768,89128.0,89127.0,0.11432]
[1765763114524,0.08768,89125.0,89124.0,0.3608]
[1765763114723,0.08768,89125.0,89124.0,0.44971]
[1765763115421,0.08768,89131.0,89130.0,0.1001286]
[1765763115728,0.79276,89131.0,89130.0,0.1001286]
[1765763115918,0.08768,89131.0,89130.0,0.1001286]
[1765763116222,0.6146,89131.0,89130.0,0.1001286]
[1765763116523,0.08768,89125.0,89124.0,0.40619]
[1765763116729,0.08768,89125.0,89124.0,0.08891]
[1765763117217,0.08768,89125.0,89124.0,0.04539]
[1765763117620,0.08768,89120.0,89116.0,0.3608]
[1765763118014,0.08768,89120.0,89110.0,0.0112211]
[1765763118218,0.44848,89120.0,89110.0,0.0112211]
[1765763118414,0.44848,89120.0,89108.0,0.3608]
[1765763118415,0.44848,89120.0,89119.0,0.04555829]
[1765763118620,0.79276,89120.0,89119.0,0.08907829]
[1765763119623,0.08768,89120.0,89119.0,0.08907829]
[1765763119824,0.71532,89120.0,89119.0,0.08907829]
[1765763120222,0.79276,89120.0,89119.0,0.08907829]
[1765763120725,1.15356,89120.0,89119.0,0.08907829]
[1765763120925,1.18108,89120.0,89119.0,0.00016829]
[1765763121125,0.08768,89101.0,89100.0,0.47512]
[1765763121317,0.79276,89101.0,89100.0,0.47512]
[1765763123024,0.70508,89101.0,89100.0,0.47512]
[1765763123425,0.00016829,89109.0,89108.0,0.1001314]
[1765763123620,0.67724829,89109.0,89108.0,0.4609314]
[1765763123823,0.00016829,89109.0,89108.0,0.4609314]
[1765763124023,0.08784829,89109.0,89108.0,0.4609314]
[1765763124227,0.00016829,89109.0,89108.0,0.4609314]
[1765763127425,0.06020383,89119.0,89118.0,0.1095101]
[1765763127626,0.06020383,89122.0,89121.0,0.09829]
[1765763128131,0.45372,89124.0,89123.0,0.09829]
[1765763128132,0.51392383,89124.0,89123.0,0.09829]
[1765763128530,0.45372,89124.0,89123.0,0.09829]
[1765763129036,0.49989,89124.0,89123.0,0.09829]
[1765763129228,0.54974,89124.0,89123.0,0.09829]
[1765763129634,0.54974,89124.0,89121.0,0.0112197]
[1765763129635,0.00016829,89132.0,89131.0,0.09905]
[1765763129839,0.00016829,89132.0,89131.0,0.45985]
[1765763130039,0.06032038,89145.0,89144.0,0.1102669]
[1765763130336,0.70508,89145.0,89144.0,0.1102669]
[1765763131837,0.75125,89145.0,89144.0,0.1102669]
[1765763132035,0.06032038,89146.0,89145.0,0.09905]
[1765763132036,0.15634038,89146.0,89145.0,0.09905]
[1765763132229,0.76540038,89146.0,89145.0,0.09905]
[1765763132425,0.70508,89146.0,89145.0,0.09905]
[1765763133338,0.09602,89141.0,89140.0,0.1381174]
[1765763133835,0.09602,89140.0,89139.0,0.3608]
[1765763134551,0.09602,89140.0,89139.0,0.45985]
[1765763135038,0.09602,89140.0,89139.0,0.3608]
[1765763135641,0.09602,89140.0,89139.0,0.45985]
[1765763135834,0.09602,89140.0,89139.0,0.3608]
[1765763136237,0.09602,89140.0,89139.0,0.41116]
[1765763136438,0.09602,89140.0,89139.0,0.45985]
[1765763136836,0.09602,89140.0,89139.0,0.41116]
[1765763137537,0.09602,89140.0,89139.0,0.3608]
[1765763139341,0.09602,89140.0,89139.0,0.45985]
[1765763142247,0.80094,89140.0,89139.0,0.3608]
[1765763142547,0.80094,89140.0,89136.0,0.00016829]
[1765763142548,0.09602,89137.0,89136.0,0.00016829]
[1765763142947,0.80094,89140.0,89139.0,0.09905]
[1765763143541,0.09602,89140.0,89139.0,0.09905]
[1765763143737,0.50309,89140.0,89139.0,0.09905]
[1765763144238,0.19692626,89148.0,89147.0,0.09905]
[1765763144447,0.80094,89148.0,89147.0,0.09905]
[1765763146244,0.80094,89148.0,89147.0,0.05036]
[1765763146642,0.80094,89148.0,89147.0,0.09905]
[1765763147146,0.19692626,89151.0,89150.0,0.09905]
[1765763147451,0.80094,89151.0,89150.0,0.1102661]
[1765763147638,0.80094,89151.0,89150.0,0.05036]
[1765763147846,0.09602,89147.0,89146.0,0.1102665]
[1765763148146,0.09602,89147.0,89146.0,0.09905]
[1765763149242,0.09602,89140.0,89139.0,0.41116]
[1765763149437,0.45682,89140.0,89139.0,0.05036]
[1765763149642,0.53728768,89140.0,89139.0,0.05036]
[1765763150245,0.53728768,89140.0,89136.0,0.00016829]
[1765763150246,0.09602,89137.0,89136.0,0.00016829]
[1765763150446,0.8009,89137.0,89136.0,0.00016829]
[1765763150847,0.8009,89137.0,89100.0,0.13305089]
[1765763150848,0.09602,89102.0,89101.0,0.3608]
[1765763151144,0.09602,89102.0,89097.0,0.05036]
[1765763151145,0.09602,89098.0,89097.0,0.05036]
[1765763151350,0.16928,89102.0,89101.0,0.09905]
[1765763151540,0.09602,89105.0,89104.0,0.09905]
[1765763151741,0.08051674,89105.0,89104.0,0.09905]
[1765763151941,0.31984,89107.0,89106.0,0.09905]
[1765763152138,0.31984,89107.0,89104.0,0.0112219]
[1765763152139,0.08051674,89112.0,89110.0,0.1381211]
[1765763152345,0.17670503,89113.0,89112.0,0.09905]
[1765763152537,0.88158503,89113.0,89112.0,0.09905]
[1765763153248,0.88158503,89113.0,89103.0,0.09905]
[1765763153249,0.09602,89104.0,89103.0,0.09905]
[1765763154254,0.89848646,89113.0,89103.0,0.110272]
[1765763154456,0.86145557,89113.0,89112.0,0.09905]
[1765763155042,0.81160557,89113.0,89112.0,0.09905]
[1765763155247,0.80106829,89113.0,89112.0,0.09905]
[1765763155651,0.86145557,89113.0,89112.0,0.09905]
[1765763155954,0.09602,89111.0,89102.0,0.0112221]
[1765763156352,0.04617,89103.0,89102.0,0.1102721]
[1765763157060,0.09602,89103.0,89102.0,0.09905]
[1765763157253,0.08878,89102.0,89101.0,0.3608]
[1765763157446,0.08878,89102.0,89101.0,0.45245]
[1765763159458,0.08878,89097.0,89096.0,0.00016829]
[1765763159655,0.08878,89097.0,89096.0,0.04662829]
[1765763160257,0.08878,89097.0,89096.0,0.00016829]
[1765763160456,0.08878,89097.0,89096.0,0.09181829]
[1765763162056,0.08878,89097.0,89096.0,0.00016829]
[1765763162248,0.1000028,89097.0,89096.0,0.00016829]
[1765763162452,0.10570665,89097.0,89096.0,0.00016829]
[1765763162660,0.09448385,89097.0,89096.0,0.00016829]
[1765763162873,0.09448385,89097.0,89096.0,0.09181829]
[1765763162874,0.64244385,89097.0,89096.0,0.09181829]
[1765763163460,0.64244385,89097.0,89096.0,0.00016829]
[1765763164260,0.64244385,89097.0,89096.0,0.09181829]
[1765763164956,0.64244385,89097.0,89096.0,0.00016829]
[1765763166760,0.6660863,89097.0,89096.0,0.00016829]
[1765763167763,0.8232063,89097.0,89096.0,0.09181829]
[1765763168554,0.02364245,89097.0,89096.0,0.09181829]
[1765763168753,0.66464245,89097.0,89096.0,0.09181829]
[1765763170658,0.75342245,89097.0,89096.0,0.09181829]
[1765763170859,0.66464245,89097.0,89096.0,0.09181829]
[1765763171048,0.02364245,89097.0,89096.0,0.09181829]
[1765763172649,0.11242245,89097.0,89096.0,0.09181829]
[1765763172854,0.02364245,89097.0,89096.0,0.09181829]
[1765763173764,0.39728245,89097.0,89096.0,0.09181829]
[1765763176053,0.02364245,89097.0,89096.0,0.09181829]
[1765763176759,0.06884245,89097.0,89096.0,0.09181829]
[1765763178768,0.02364245,89097.0,89096.0,0.09181829]
[1765763179360,0.02364245,89097.0,89096.0,0.45261829]
[1765763181368,0.7939,89110.0,89109.0,0.12021]
[1765763182269,0.8543974,89110.0,89109.0,0.12021]
[1765763183064,0.7656174,89110.0,89109.0,0.12021]
[1765763183461,0.7939,89110.0,89109.0,0.12021]
[1765763183653,0.08878,89110.0,89109.0,0.12021]
[1765763183860,0.00016829,89113.0,89112.0,0.09165]
[1765763184168,0.04536829,89113.0,89112.0,0.09165]
[1765763184462,0.08894829,89113.0,89112.0,0.09165]
[1765763184865,0.04358,89110.0,89106.0,0.0112216]
[1765763185058,0.1000016,89106.0,89105.0,0.3608]
[1765763185260,0.08878,89101.0,89100.0,0.12021]
[1765763185966,0.70504,89106.0,89096.0,0.04662829]
[1765763185967,0.1000028,89097.0,89096.0,0.04662829]
[1765763186169,0.1000028,89097.0,89096.0,0.00016829]
[1765763187164,0.16049721,89097.0,89096.0,0.00016829]
[1765763187364,0.1000028,89097.0,89096.0,0.00016829]
[1765763187975,0.08586,89078.0,89077.0,0.40643]
[1765763188159,0.14948598,89086.0,89085.0,0.08407]
[1765763188364,0.72798,89086.0,89085.0,0.08407]
[1765763188672,0.72798,89086.0,89077.0,0.3720253]
[1765763188673,0.08898,89078.0,89077.0,0.4560953]
[1765763189462,0.08898,89078.0,89077.0,0.44487]
[1765763190474,0.44978,89078.0,89077.0,0.04242]
[1765763190771,0.08898,89078.0,89077.0,0.08407]
[1765763191971,0.10441304,89083.0,89082.0,0.11103]
[1765763192265,0.08898,89083.0,89082.0,0.11103]
[1765763192962,0.08898,89074.0,89073.0,0.08407]
[1765763193168,0.1126113,89074.0,89073.0,0.08407]
[1765763196770,0.08898,89070.0,89069.0,0.00016839]
[1765763197074,0.8177313,89070.0,89069.0,0.00016839]
[1765763199369,0.08898,89057.0,89056.0,0.095424]
[1765763199570,0.1126113,89057.0,89056.0,0.095424]